bitfinex-derivatives/quotes_BTCF0:USTF0_20250517
["timestamp","ask_amount","ask_price","bid_price","bid_amount"]
[1747454707985,0.0885,103570.0,103560.0,1.5820161]
[1747454708288,0.0885,103570.0,103560.0,1.3888761]
[1747454708490,0.136,103570.0,103560.0,1.5819362]
[1747454709188,0.136,103570.0,103560.0,1.0956381]
[1747454709489,0.136,103570.0,103560.0,1.5079381]
[1747454716087,0.0885,103570.0,103560.0,1.7034761]
[1747454717105,0.0408,103570.0,103560.0,1.8834761]
[1747454717293,0.0408,103570.0,103560.0,1.624531]
[1747454718199,0.13737,103570.0,103560.0,1.741361]
[1747454718600,0.13737,103570.0,103560.0,1.80399645]
[1747454719007,0.13737,103570.0,103560.0,1.84501633]
[1747454719198,0.13737,103570.0,103560.0,1.74845633]
[1747454719597,0.13737,103570.0,103560.0,1.70743645]
[1747454719901,0.13737,103570.0,103560.0,1.644801]
[1747454721302,0.13737,103570.0,103560.0,1.7780092]
[1747454721495,0.09657,103570.0,103560.0,1.7780092]
[1747454721694,0.09657,103570.0,103560.0,1.8745652]
[1747454721894,0.09657,103570.0,103560.0,2.0145652]
[1747454722094,0.09657,103570.0,103560.0,2.47245621]
[1747454722293,0.18697,103580.0,103570.0,0.0964814]
[1747454722495,0.14227,103580.0,103570.0,2.13914595]
[1747454722699,0.14227,103580.0,103570.0,2.35569395]
[1747454722901,0.0903,103590.0,103580.0,0.1930228]
[1747454723100,0.0903,103590.0,103580.0,1.74716735]
[1747454723302,0.0457,103590.0,103580.0,1.65061735]
[1747454723497,0.0457,103590.0,103580.0,1.7460619]
[1747454723703,0.0457,103590.0,103580.0,2.1629619]
[1747454724206,0.0457,103590.0,103580.0,2.0664219]
[1747454724402,0.0457,103590.0,103580.0,2.2594447]
[1747454725304,0.0467,103590.0,103580.0,2.2594447]
[1747454725503,0.0477,103590.0,103580.0,2.2594447]
[1747454725699,0.0943,103590.0,103580.0,2.16400015]
[1747454725894,0.0923,103590.0,103580.0,2.16600015]
[1747454726098,0.0923,103590.0,103580.0,2.0726356]
[1747454726300,0.0923,103590.0,103580.0,1.74160015]
[1747454726497,0.0923,103590.0,103580.0,2.16816015]
[1747454727400,0.139,103590.0,103580.0,1.27326735]
[1747454727609,0.139,103590.0,103580.0,1.0778228]
[1747454727908,0.139,103590.0,103580.0,1.60006735]
[1747454728098,0.139,103590.0,103580.0,1.42006735]
[1747454728406,0.23554,103590.0,103580.0,1.05926735]
[1747454728602,0.59634,103590.0,103580.0,0.63246735]
[1747454728803,0.59634,103590.0,103580.0,1.05726735]
[1747454728995,0.59634,103590.0,103580.0,1.05526735]
[1747454729198,0.59634,103590.0,103580.0,0.8642628]
[1747454729400,0.59634,103590.0,103580.0,0.4374628]
[1747454729602,0.59634,103590.0,103580.0,0.8642228]
[1747454730307,0.4998,103590.0,103580.0,0.6711228]
[1747454730504,0.4998,103590.0,103580.0,0.6507828]
[1747454730708,0.4998,103590.0,103580.0,0.6407828]
[1747454731109,0.4998,103590.0,103580.0,0.4261428]
[1747454731405,0.5018,103590.0,103580.0,0.2130228]
[1747454731600,0.5018,103590.0,103580.0,0.6396628]
[1747454732209,0.5018,103590.0,103580.0,0.6196628]
[1747454733611,0.5018,103590.0,103580.0,0.76510735]
[1747454734419,0.5018,103590.0,103580.0,0.6696628]
[1747454735613,0.141,103590.0,103580.0,0.6696628]
[1747454735814,0.5018,103590.0,103580.0,0.6696628]
[1747454741218,0.5018,103590.0,103580.0,0.4765428]
[1747454741414,0.5018,103590.0,103580.0,0.6695656]
[1747454742524,0.79024875,103590.0,103580.0,0.2630228]
[1747454742817,0.79024875,103590.0,103580.0,0.6193256]
[1747454743019,0.79024875,103590.0,103580.0,0.1930228]
[1747454743221,0.79024875,103590.0,103580.0,0.6195028]
[1747454743524,0.79024875,103590.0,103580.0,0.6194228]
[1747454743724,0.6948042,103590.0,103580.0,0.4061828]
[1747454743919,0.6948042,103590.0,103580.0,0.6194628]
[1747454744222,0.6948042,103590.0,103580.0,0.4263428]
[1747454744420,0.6948042,103590.0,103580.0,0.6193656]
[1747454748931,0.6948042,103590.0,103580.0,0.1930228]
[1747454749223,0.6948042,103590.0,103580.0,0.6193028]
[1747454750225,1.15024875,103590.0,103580.0,0.4260028]
[1747454750525,0.79024875,103590.0,103580.0,0.1930228]
[1747454750713,0.6948042,103590.0,103580.0,0.1930228]
[1747454753330,1.0556042,103590.0,103580.0,0.1930228]
[1747454754423,1.0556042,103590.0,103580.0,0.6197828]
[1747454755134,1.15104875,103590.0,103580.0,0.6197828]
[1747454755837,1.15104875,103590.0,103580.0,0.6195828]
[1747454756133,1.0556042,103590.0,103580.0,0.6195828]
[1747454757131,0.8626,103590.0,103580.0,0.6195828]
[1747454757438,1.0556042,103590.0,103580.0,0.35846735]
[1747454757637,0.8626,103590.0,103580.0,0.7168028]
[1747454757930,0.8626,103590.0,103580.0,0.8188028]
[1747454758638,0.8626,103590.0,103580.0,0.9688028]
[1747454759328,0.8616,103590.0,103580.0,0.5422056]
[1747454759530,0.8616,103590.0,103580.0,0.9685656]
[1747454759839,0.8606,103590.0,103580.0,1.06501015]
[1747454760339,0.8606,103590.0,103580.0,0.7764256]
[1747454760841,0.8606,103590.0,103580.0,0.8439956]
[1747454761941,1.0536041,103590.0,103580.0,0.8439956]
[1747454762142,0.8606,103590.0,103580.0,0.8439956]
[1747454763345,0.8606,103590.0,103580.0,0.90663341]
[1747454763542,0.8606,103590.0,103580.0,0.96493341]
[1747454763749,0.8606,103590.0,103580.0,0.96393341]
[1747454764043,0.8626,103590.0,103580.0,0.96393341]
[1747454764245,0.8626,103590.0,103580.0,0.77079341]
[1747454764446,0.8626,103590.0,103580.0,0.97079341]
[1747454764648,0.8616,103590.0,103580.0,0.77079341]
[1747454764950,0.8606,103590.0,103580.0,0.85179341]
[1747454765353,0.8606,103590.0,103580.0,0.85167621]
[1747454765550,0.8606,103590.0,103580.0,0.7890384]
[1747454765746,0.8606,103590.0,103580.0,0.85167621]
[1747454766448,0.8606,103590.0,103580.0,0.87367621]
[1747454766645,0.8606,103590.0,103580.0,0.48449061]
[1747454766846,1.11624201,103590.0,103580.0,0.7899128]
[1747454767048,1.11624201,103590.0,103580.0,0.3635528]
[1747454767343,1.0536042,103590.0,103580.0,0.5766728]
[1747454767550,1.11624201,103590.0,103580.0,0.17053]
[1747454767740,1.48724201,103590.0,103580.0,0.51697]
[1747454767941,1.11724201,103590.0,103580.0,0.51597]
[1747454768250,1.11824201,103590.0,103580.0,0.5158528]
[1747454769049,1.11824201,103590.0,103580.0,0.32287]
[1747454769349,1.15107716,103590.0,103580.0,0.5158928]
[1747454770050,1.15107716,103590.0,103580.0,0.3025328]
[1747454770249,1.15107716,103590.0,103580.0,0.1093928]
[1747454772355,1.48107716,103590.0,103580.0,0.1093928]
[1747454773155,0.1930228,103580.0,103570.0,1.8194959]
[1747454773351,0.7129228,103580.0,103570.0,2.1494959]
[1747454774046,0.7129228,103580.0,103570.0,0.6283359]
[1747454774246,0.7129228,103580.0,103570.0,1.0544159]
[1747454776248,0.7129228,103580.0,103570.0,1.0554159]
[1747454776555,0.7129228,103580.0,103570.0,1.0551759]
[1747454779452,0.5199,103580.0,103570.0,1.0551759]
[1747454779646,0.7129228,103580.0,103570.0,1.0551759]
[1747454779855,0.7129228,103580.0,103570.0,0.6293359]
[1747454780058,0.7129228,103580.0,103570.0,1.0548159]
[1747454780357,0.3521228,103580.0,103570.0,1.0548159]
[1747454780556,0.7129228,103580.0,103570.0,1.0548159]
[1747454780955,0.7129228,103580.0,103570.0,0.76535]
[1747454781156,0.7129228,103580.0,103570.0,0.9496014]
[1747454781457,0.7129228,103580.0,103570.0,0.5520914]
[1747454781657,0.7129228,103580.0,103570.0,0.7664414]
[1747454782457,0.7129228,103580.0,103570.0,0.5540414]
[1747454782658,0.7129228,103580.0,103570.0,0.9791614]
[1747454782857,0.80839576,103580.0,103570.0,0.361]
[1747454783059,0.80839576,103580.0,103570.0,0.2940414]
[1747454783357,0.80839576,103580.0,103570.0,0.2930414]
[1747454784153,0.80839576,103580.0,103570.0,0.1930414]
[1747454784357,0.80839576,103580.0,103570.0,0.1998814]
[1747454784557,0.80839576,103580.0,103570.0,0.0998814]
[1747454787659,1.49919576,103580.0,103570.0,0.0998814]
[1747454790163,0.1930414,103570.0,103560.0,0.78319226]
[1747454790358,0.7266414,103570.0,103560.0,1.14069226]
[1747454790863,0.7266414,103570.0,103560.0,1.09242866]
[1747454791363,0.7266414,103570.0,103560.0,1.15508776]
[1747454791662,0.7266414,103570.0,103560.0,1.15708776]
[1747454792564,0.7266414,103570.0,103560.0,1.15908776]
[1747454792957,0.7266414,103570.0,103560.0,1.11082426]
[1747454794262,0.9789182,103570.0,103560.0,0.334]
[1747454794465,0.9162591,103570.0,103560.0,0.084]
[1747454794663,0.9162591,103570.0,103560.0,0.004]
[1747454794862,0.9789182,103570.0,103560.0,0.004]
[1747454795065,0.9162591,103570.0,103560.0,0.004]
[1747454795261,0.9162591,103570.0,103550.0,0.05409174]
[1747454795262,0.1930749,103560.0,103550.0,0.05409174]
[1747454795464,0.794334,103560.0,103550.0,0.61718044]
[1747454795867,1.2389931,103560.0,103550.0,0.61718044]
[1747454796170,1.2389931,103560.0,103550.0,0.2734]
[1747454796171,0.8789966,103560.0,103550.0,0.2734]
[1747454796488,0.8789966,103560.0,103550.0,0.1768]
[1747454796657,0.4363375,103560.0,103550.0,0.37]
[1747454796857,0.4363375,103560.0,103550.0,0.2298]
[1747454797060,0.4363375,103560.0,103550.0,0.44192]
[1747454798260,0.6293988,103560.0,103550.0,0.44192]
[1747454798862,0.5667397,103560.0,103550.0,0.44192]
[1747454799062,0.6293988,103560.0,103550.0,0.44192]
[1747454799265,0.7498988,103560.0,103550.0,0.44192]
[1747454800269,0.7498988,103560.0,103550.0,0.6350006]
[1747454800571,0.7498988,103560.0,103550.0,0.6353206]
[1747454802173,0.7498988,103560.0,103550.0,0.44224]
[1747454803471,0.6872397,103560.0,103550.0,0.44224]
[1747454803677,0.7498988,103560.0,103550.0,0.44224]
[1747454803970,0.7498988,103560.0,103550.0,0.6353206]
[1747454804374,0.7498988,103560.0,103550.0,0.8353206]
[1747454804781,0.6872397,103560.0,103550.0,0.8353206]
[1747454805270,0.6872397,103560.0,103550.0,0.9558206]
[1747454806177,0.6872397,103560.0,103550.0,1.0184797]
[1747454806178,0.4329784,103560.0,103550.0,1.0184797]
[1747454806968,0.6260404,103560.0,103550.0,1.0184797]
[1747454807179,0.6260404,103560.0,103550.0,1.0052797]
[1747454808285,0.6260404,103560.0,103550.0,1.0236797]
[1747454809279,0.6260404,103560.0,103550.0,0.8304797]
[1747454809280,0.4329784,103560.0,103550.0,0.8304797]
[1747454809486,0.4329784,103560.0,103550.0,1.0235603]
[1747454810486,0.4329784,103560.0,103550.0,1.0533603]
[1747454810996,0.6260404,103560.0,103550.0,1.0533603]
[1747454814494,0.2652404,103560.0,103550.0,1.0533603]
[1747454814787,0.6260404,103560.0,103550.0,1.0533603]
[1747454815087,0.4329784,103560.0,103550.0,1.0533603]
[1747454819587,0.4925784,103560.0,103550.0,1.0533603]
[1747454820282,0.4925784,103560.0,103550.0,1.0576397]
[1747454821190,0.4925784,103560.0,103550.0,0.9949806]
[1747454821392,0.4925784,103560.0,103550.0,1.0576397]
[1747454821580,0.4925784,103560.0,103550.0,0.8460397]
[1747454821780,0.4925784,103560.0,103550.0,1.2677597]
[1747454823578,0.0721784,103560.0,103550.0,1.2677597]
[1747454823782,0.4329784,103560.0,103550.0,1.2677597]
[1747454825287,0.4917784,103560.0,103550.0,1.2677597]
[1747454827783,0.4917784,103560.0,103550.0,1.2674797]
[1747454827994,0.4917784,103560.0,103550.0,1.2048206]
[1747454828493,0.4917784,103560.0,103550.0,1.2048606]
[1747454828690,0.4917784,103560.0,103550.0,0.9945806]
[1747454828890,0.4917784,103560.0,103550.0,1.2048606]
[1747454829191,0.6848403,103560.0,103550.0,1.1750606]
[1747454830793,0.4917784,103560.0,103550.0,1.1750606]
[1747454830984,0.4917784,103560.0,103550.0,1.2682197]
[1747454831186,0.4917784,103560.0,103550.0,1.0750197]
[1747454831493,0.4917784,103560.0,103550.0,1.0445197]
[1747454832694,0.4917784,103560.0,103550.0,0.9818606]
[1747454834092,0.4917784,103560.0,103550.0,1.0123606]
[1747454834896,0.4917784,103560.0,103550.0,0.9818606]
[1747454837097,0.6848404,103560.0,103550.0,0.9818606]
[1747454837291,0.4917784,103560.0,103550.0,1.0445197]
[1747454837494,0.4917784,103560.0,103550.0,0.5785]
[1747454837495,0.7474995,103560.0,103550.0,0.5785]
[1747454837993,0.6848404,103560.0,103550.0,0.7921]
[1747454838187,0.7474995,103560.0,103550.0,0.0668]
[1747454838388,0.9244375,103560.0,103540.0,0.73017773]
[1747454838589,0.7358806,103550.0,103540.0,1.09153143]
[1747454839303,0.7358806,103550.0,103540.0,1.27130163]
[1747454839997,0.7358806,103550.0,103540.0,1.27158163]
[1747454840901,0.7358806,103550.0,103540.0,1.2816262]
[1747454842399,0.7358806,103550.0,103540.0,1.2815062]
[1747454843500,0.4797,103550.0,103540.0,1.2815062]
[1747454844203,0.4797,103550.0,103540.0,1.29577348]
[1747454845904,0.4797,103550.0,103540.0,1.29877348]
[1747454846101,0.4797,103550.0,103540.0,1.14916937]
[1747454846102,0.6727806,103550.0,103540.0,1.14916937]
[1747454846803,0.6727806,103550.0,103540.0,0.72140937]
[1747454847003,0.6727806,103550.0,103540.0,1.14908937]
[1747454848007,0.6727806,103550.0,103540.0,1.10081477]
[1747454848301,0.7354397,103550.0,103540.0,0.48004457]
[1747454848515,0.7354397,103550.0,103540.0,0.6838]
[1747454848705,0.7354397,103550.0,103540.0,0.47]
[1747454848907,0.7354397,103550.0,103540.0,0.6630993]
[1747454849209,0.7354397,103550.0,103540.0,0.4698793]
[1747454849703,0.7354397,103550.0,103540.0,0.6930993]
[1747454853111,0.6727806,103550.0,103540.0,0.6930993]
[1747454853518,0.4797,103550.0,103540.0,0.6930993]
[1747454854000,0.539,103550.0,103540.0,0.6930993]
[1747454854196,0.7320806,103550.0,103540.0,0.6930993]
[1747454854711,0.7320806,103550.0,103540.0,1.1198593]
[1747454859714,0.7320806,103550.0,103540.0,1.1193793]
[1747454859909,0.7320806,103550.0,103540.0,0.5]
[1747454860211,0.7320806,103550.0,103540.0,0.52062]
[1747454860418,0.7320806,103550.0,103540.0,0.73306]
[1747454860802,0.7320806,103550.0,103540.0,0.52062]
[1747454861008,0.7320806,103550.0,103540.0,0.73298]
[1747454862318,0.7320806,103550.0,103540.0,0.9260793]
[1747454863525,0.7320806,103550.0,103540.0,0.9887384]
[1747454863822,0.7320806,103550.0,103540.0,1.0240384]
[1747454864232,0.7320806,103550.0,103540.0,1.2040384]
[1747454864634,0.7320806,103550.0,103540.0,1.1413793]
[1747454864822,0.7320806,103550.0,103540.0,1.1060793]
[1747454865331,0.7320806,103550.0,103540.0,0.91246]
[1747454865630,1.1147397,103550.0,103540.0,0.48678]
[1747454866123,1.1147397,103550.0,103540.0,0.30678]
[1747454866324,1.1147397,103550.0,103540.0,0.11356]
[1747454866523,0.1930992,103540.0,103530.0,0.73998139]
[1747454866726,0.8037583,103540.0,103530.0,0.66434139]
[1747454866927,0.8037583,103540.0,103530.0,1.08998139]
[1747454867120,0.8037583,103540.0,103530.0,1.26998139]
[1747454867320,0.8037583,103540.0,103530.0,1.22159299]
[1747454867524,0.8037583,103540.0,103530.0,1.22259299]
[1747454867726,0.8037583,103540.0,103530.0,1.25889299]
[1747454868127,0.8037583,103540.0,103530.0,1.26887384]
[1747454868632,0.7410992,103540.0,103530.0,1.28365145]
[1747454869235,0.7410992,103540.0,103530.0,1.34631055]
[1747454870333,0.7410992,103540.0,103530.0,1.29803115]
[1747454871037,0.7410992,103540.0,103530.0,1.27346856]
[1747454871238,0.7410992,103540.0,103530.0,1.08035756]
[1747454871442,0.7410992,103540.0,103530.0,0.98203846]
[1747454871739,0.7410992,103540.0,103530.0,0.55675846]
[1747454872338,0.8037583,103540.0,103530.0,0.75582085]
[1747454872529,0.8037583,103540.0,103530.0,0.96714085]
[1747454872729,0.8037583,103540.0,103530.0,0.96710085]
[1747454873236,0.8037583,103540.0,103530.0,0.78710085]
[1747454874143,0.7410992,103540.0,103530.0,0.98021885]
[1747454874334,0.7410992,103540.0,103530.0,1.01551885]
[1747454874528,0.548,103540.0,103530.0,1.03995795]
[1747454874740,0.7410993,103540.0,103530.0,1.07525795]
[1747454875032,0.7410993,103540.0,103530.0,1.07533795]
[1747454875239,0.7410993,103540.0,103530.0,1.25533795]
[1747454875739,0.548,103540.0,103530.0,1.25533795]
[1747454875940,0.7410992,103540.0,103530.0,1.25533795]
[1747454876240,0.548,103540.0,103530.0,1.25533795]
[1747454876545,0.7410993,103540.0,103530.0,1.22003795]
[1747454876841,0.7410993,103540.0,103530.0,0.79775795]
[1747454877139,0.7410993,103540.0,103530.0,0.97713885]
[1747454877335,0.7410993,103540.0,103530.0,0.55509885]
[1747454877541,0.7410993,103540.0,103530.0,0.97709885]
[1747454878339,0.7410993,103540.0,103530.0,0.78387885]
[1747454878532,0.7410993,103540.0,103530.0,0.62709885]
[1747454878733,0.7410993,103540.0,103530.0,1.00709885]
[1747454879233,0.7410993,103540.0,103530.0,1.18709885]
[1747454883743,0.7410993,103540.0,103530.0,0.76509885]
[1747454883942,0.7410993,103540.0,103530.0,1.18641885]
[1747454884541,0.548,103540.0,103530.0,1.22741885]
[1747454884745,0.548,103540.0,103530.0,1.22733885]
[1747454885037,0.548,103540.0,103530.0,0.86875795]
[1747454885242,0.548,103540.0,103530.0,1.28999795]
[1747454885949,0.7410993,103540.0,103530.0,1.28991795]
[1747454886240,0.7410993,103540.0,103530.0,1.22725885]
[1747454886544,1.1018993,103540.0,103530.0,1.22725885]
[1747454887141,1.1018993,103540.0,103530.0,0.97621885]
[1747454887335,1.1018993,103540.0,103530.0,1.18617885]
[1747454887536,1.5472175,103540.0,103530.0,0.262]
[1747454888044,1.1645584,103540.0,103530.0,0.4551179]
[1747454888239,1.1645584,103540.0,103530.0,0.0818779]
[1747454888240,1.1018993,103540.0,103530.0,0.0818779]
[1747454888439,1.1645584,103540.0,103530.0,0.3418779]
[1747454888637,1.1018993,103540.0,103530.0,0.3827779]
[1747454888838,0.9088,103540.0,103530.0,0.445437]
[1747454889346,0.9088,103540.0,103530.0,0.625437]
[1747454889546,0.8456,103540.0,103530.0,0.719437]
[1747454890247,0.8456,103540.0,103530.0,0.526217]
[1747454890441,0.8456,103540.0,103530.0,0.900677]
[1747454890640,0.7851,103540.0,103530.0,0.900677]
[1747454891248,0.4852,103550.0,103540.0,0.1930993]
[1747454891440,0.4852,103550.0,103540.0,1.1007584]
[1747454892142,0.4852,103550.0,103540.0,1.2807584]
[1747454892349,0.4862,103550.0,103540.0,1.2806577]
[1747454892642,0.7452807,103550.0,103540.0,0.8596577]
[1747454892841,0.7462807,103550.0,103540.0,1.1242193]
[1747454893036,0.7462807,103550.0,103540.0,0.7030993]
[1747454893236,0.7462807,103550.0,103540.0,1.1241393]
[1747454895447,0.7462807,103550.0,103540.0,1.1242393]
[1747454895748,0.7462807,103550.0,103540.0,0.7031993]
[1747454895947,0.7462807,103550.0,103540.0,1.1239593]
[1747454896742,0.7462807,103550.0,103540.0,0.7031993]
[1747454896946,0.7462807,103550.0,103540.0,1.1239593]
[1747454897746,0.7462807,103550.0,103540.0,1.1238593]
[1747454899149,1.3389398,103550.0,103540.0,0.06]
[1747454899352,0.1930993,103540.0,103530.0,0.3040443]
[1747454899651,0.5505,103540.0,103530.0,1.0948043]
[1747454899853,0.5505,103540.0,103530.0,1.0949043]
[1747454900048,0.5505,103540.0,103530.0,1.3688043]
[1747454900441,0.5505,103540.0,103530.0,1.37524646]
[1747454900648,0.5505,103540.0,103530.0,0.95448646]
[1747454900854,0.5505,103540.0,103530.0,1.37524646]
[1747454901247,0.5505,103540.0,103530.0,1.37624646]
[1747454901545,0.5505,103540.0,103530.0,1.3708043]
[1747454903454,0.5505,103540.0,103530.0,1.38881668]
[1747454905349,0.5505,103540.0,103530.0,1.32615758]
[1747454905555,0.5505,103540.0,103530.0,1.38881668]
[1747454906145,0.1252,103540.0,103530.0,1.45147578]
[1747454906348,0.1252,103540.0,103530.0,1.40314508]
[1747454906553,0.1252,103540.0,103530.0,1.34048598]
[1747454908656,0.1252,103540.0,103530.0,1.50078598]
[1747454908854,0.1252,103540.0,103530.0,1.34048598]
[1747454911359,0.1884,103540.0,103530.0,1.34048598]
[1747454912262,0.1884,103540.0,103530.0,1.13080598]
[1747454912458,0.1884,103540.0,103530.0,1.34048598]
[1747454914059,0.1884,103540.0,103530.0,0.91972598]
[1747454914259,0.5492,103540.0,103530.0,1.33900598]
[1747454914956,0.1884,103540.0,103530.0,1.33900598]
[1747454916855,0.5492,103540.0,103530.0,1.33900598]
[1747454917057,0.5492,103540.0,103530.0,1.12936598]
[1747454917257,0.5492,103540.0,103530.0,1.29322378]
[1747454917464,0.5492,103540.0,103530.0,0.87394378]
[1747454917765,0.5492,103540.0,103530.0,1.29322378]
[1747454918462,0.5492,103540.0,103530.0,0.87394378]
[1747454918764,0.1884,103540.0,103530.0,1.29322378]
[1747454919063,0.5492,103540.0,103530.0,1.29322378]
[1747454919962,0.1884,103540.0,103530.0,1.29322378]
[1747454920164,0.1884,103540.0,103530.0,1.41792378]
[1747454921866,0.1884,103540.0,103530.0,0.92924378]
[1747454922062,0.5492,103540.0,103530.0,1.29322378]
[1747454922262,0.5492,103540.0,103530.0,1.08358378]
[1747454922463,0.5492,103540.0,103530.0,1.23056468]
[1747454922661,0.7422993,103540.0,103530.0,0.81128468]
[1747454922861,0.7422993,103540.0,103530.0,1.23056468]
[1747454923061,0.7422993,103540.0,103530.0,0.81128468]
[1747454923256,0.7422993,103540.0,103530.0,0.73120758]
[1747454923469,0.8049584,103540.0,103530.0,0.55965238]
[1747454924068,0.8049584,103540.0,103530.0,0.37965238]
[1747454924259,0.8049584,103540.0,103530.0,0.28304238]
[1747454924460,0.8049584,103540.0,103530.0,0.20964]
[1747454924662,0.8388526,103540.0,103530.0,0.41928]
[1747454927068,0.8388526,103540.0,103530.0,0.612398]
[1747454927673,0.8388526,103540.0,103530.0,0.6750571]
[1747454927970,0.8388526,103540.0,103530.0,0.69298071]
[1747454929161,0.8388526,103540.0,103530.0,0.515778]
[1747454929773,0.8388526,103540.0,103530.0,0.193118]
[1747454929975,0.8388526,103540.0,103530.0,0.402758]
[1747454932078,0.8388526,103540.0,103530.0,0.193118]
[1747454932273,0.8388526,103540.0,103530.0,0.402758]
[1747454934667,1.2623117,103540.0,103530.0,0.20964]
[1747454935387,0.193118,103530.0,103520.0,0.56684338]
[1747454935588,0.754918,103530.0,103520.0,1.17914248]
[1747454935790,0.8175771,103530.0,103520.0,0.34144873]
[1747454935994,0.8175771,103530.0,103520.0,0.95382533]
[1747454936296,0.8175771,103530.0,103520.0,0.45445873]
[1747454936494,0.8175771,103530.0,103520.0,0.45745873]
[1747454936692,0.8175771,103530.0,103520.0,0.45945873]
[1747454937398,0.8175771,103530.0,103520.0,0.65259533]
[1747454938185,0.754918,103530.0,103520.0,0.45945873]
[1747454939491,0.754918,103530.0,103520.0,0.86223533]
[1747454940183,0.76940052,103530.0,103520.0,0.86223533]
[1747454942890,0.40860052,103530.0,103520.0,0.86223533]
[1747454943191,1.13020052,103530.0,103520.0,0.86223533]
[1747454944392,1.19285962,103530.0,103520.0,0.86223533]
[1747454944583,1.19285962,103530.0,103520.0,0.44295533]
[1747454944783,1.19285962,103530.0,103520.0,0.86223533]
[1747454947093,1.13020052,103530.0,103520.0,0.86223533]
[1747454948200,1.13020052,103530.0,103520.0,0.44295533]
[1747454948392,1.13020052,103530.0,103520.0,0.86223533]
[1747454950996,1.13020052,103530.0,103520.0,0.86219533]
[1747454952096,1.13020052,103530.0,103520.0,1.04219533]
[1747454952608,1.13020052,103530.0,103520.0,0.84905873]
[1747454952788,1.13020052,103530.0,103520.0,0.42981873]
[1747454953096,1.13020052,103530.0,103520.0,0.84905873]
[1747454954192,1.13020052,103530.0,103520.0,0.66905873]
[1747454954996,1.19285962,103530.0,103520.0,0.66905873]
[1747454955299,1.19285962,103530.0,103520.0,0.84905873]
[1747454956001,1.19285962,103530.0,103520.0,1.04219533]
[1747454959691,1.13020052,103530.0,103520.0,1.04219533]
[1747454960710,1.13020052,103530.0,103520.0,0.62295533]
[1747454960915,1.13020052,103530.0,103520.0,1.04215533]
[1747454965115,1.13020052,103530.0,103520.0,1.10481443]
[1747454965603,1.13020052,103530.0,103520.0,1.04215533]
[1747454966803,1.13020052,103530.0,103520.0,0.62295533]
[1747454967110,1.13020052,103530.0,103520.0,1.04203533]
[1747454967312,1.13020052,103530.0,103520.0,1.10469443]
[1747454969819,1.13020052,103530.0,103520.0,0.70199783]
[1747454970110,1.13020052,103530.0,103520.0,0.83247533]
[1747454970300,1.13020052,103530.0,103520.0,1.04199533]
[1747454970501,1.13020052,103530.0,103520.0,0.62295533]
[1747454970802,1.13020052,103530.0,103520.0,1.04199533]
[1747454971517,1.13020052,103530.0,103520.0,0.84885873]
[1747454971715,1.13020052,103530.0,103520.0,1.04199533]
[1747454974918,0.40860052,103530.0,103520.0,1.04199533]
[1747454975116,1.13020052,103530.0,103520.0,1.04199533]
[1747454976017,0.40860052,103530.0,103520.0,1.04199533]
[1747454976210,1.13020052,103530.0,103520.0,1.04199533]
[1747454986226,1.13020052,103530.0,103520.0,0.62295533]
[1747454986415,1.13020052,103530.0,103520.0,1.04191533]
[1747454987820,1.13020052,103530.0,103520.0,0.84877873]
[1747454988224,1.13020052,103530.0,103520.0,0.83247533]
[1747454988428,1.13020052,103530.0,103520.0,0.63925873]
[1747454988920,1.19285962,103530.0,103520.0,0.42981873]
[1747454990122,1.56285962,103530.0,103520.0,0.42981873]
[1747454990423,1.19285962,103530.0,103520.0,0.42981873]
[1747454990628,1.19285962,103530.0,103520.0,0.62295533]
[1747454990830,1.13020052,103530.0,103520.0,0.62295533]
[1747454991030,0.93708252,103530.0,103520.0,0.68561443]
[1747454991330,1.13020052,103530.0,103520.0,0.68561443]
[1747454991824,1.13020052,103530.0,103520.0,0.70011443]
[1747454992020,1.13020052,103530.0,103520.0,0.90963443]
[1747454992221,1.13020052,103530.0,103520.0,1.11903443]
[1747454992930,1.13020052,103530.0,103520.0,0.70011443]
[1747454993129,1.13020052,103530.0,103520.0,1.11903443]
[1747454996438,1.13020052,103530.0,103520.0,1.10453443]
[1747454997234,1.13020052,103530.0,103520.0,0.91139783]
[1747454997630,1.13020052,103530.0,103520.0,0.84873873]
[1747454998035,1.13020052,103530.0,103520.0,0.42981873]
[1747454998230,1.13020052,103530.0,103520.0,0.84853873]
[1747455000134,1.13020052,103530.0,103520.0,1.04167533]
[1747455002237,1.13020052,103530.0,103520.0,1.10433443]
[1747455002441,1.13020052,103530.0,103520.0,1.23783443]
[1747455002737,0.93708252,103530.0,103520.0,1.23783443]
[1747455002937,1.13020052,103530.0,103520.0,1.23783443]
[1747455006951,1.13020052,103530.0,103520.0,1.11953443]
[1747455007154,1.13020052,103530.0,103520.0,0.70081443]
[1747455007345,1.13020052,103530.0,103520.0,1.11949443]
[1747455012352,1.13020052,103530.0,103520.0,1.16899443]
[1747455013756,1.13020052,103530.0,103520.0,1.11949443]
[1747455014552,1.13020052,103530.0,103520.0,1.05683533]
[1747455014747,1.13020052,103530.0,103520.0,1.11949443]
[1747455015657,1.13020052,103530.0,103520.0,1.10429443]
[1747455016457,1.13020052,103530.0,103520.0,1.11949443]
[1747455017854,0.76940052,103530.0,103520.0,1.11949443]
[1747455018253,0.76940052,103530.0,103520.0,1.05683533]
[1747455018453,0.76940052,103530.0,103520.0,1.11949443]
[1747455018949,0.76940052,103530.0,103520.0,0.91017443]
[1747455019154,0.76940052,103530.0,103520.0,1.10421443]
[1747455019352,0.76940052,103530.0,103520.0,0.89497443]
[1747455019560,0.76940052,103530.0,103520.0,1.10421443]
[1747455020455,0.76940052,103530.0,103520.0,1.04155533]
[1747455020654,0.76940052,103530.0,103520.0,1.10421443]
[1747455025258,0.76940052,103530.0,103520.0,1.10417443]
[1747455029269,0.76940052,103530.0,103520.0,0.68561443]
[1747455029473,0.76940052,103530.0,103520.0,1.10393443]
[1747455030973,0.76940052,103530.0,103520.0,0.68561443]
[1747455031162,0.76940052,103530.0,103520.0,1.10393443]
[1747455031970,0.76940052,103530.0,103520.0,0.68561443]
[1747455032171,0.76940052,103530.0,103520.0,1.10393443]
[1747455044180,0.76940052,103530.0,103520.0,1.10385443]
[1747455044981,0.76940052,103530.0,103520.0,1.10381443]
[1747455049774,0.76940052,103530.0,103520.0,1.10377443]
[1747455051469,0.76940052,103530.0,103520.0,0.68561443]
[1747455051670,0.76940052,103530.0,103520.0,1.10377443]
[1747455052783,0.40860052,103530.0,103520.0,1.10377443]
[1747455052983,0.76940052,103530.0,103520.0,1.10377443]
[1747455054678,0.76940052,103530.0,103520.0,0.68561443]
[1747455054884,0.76940052,103530.0,103520.0,1.10373443]
[1747455059183,0.40860052,103530.0,103520.0,1.10373443]
[1747455059386,0.76940052,103530.0,103520.0,1.10373443]
[1747455060092,0.5618,103530.0,103520.0,1.16639353]
[1747455060387,0.5618,103530.0,103520.0,1.18589353]